bitfinex-derivatives/quotes_SOLF0:USTF0_20260211
["timestamp","ask_amount","ask_price","bid_price","bid_amount"]
[1770787346723,6.62999163,82.232,82.191,3.26740728]
[1770787346919,6.62999163,82.232,82.2,3.02959187]
[1770787347424,6.62999163,82.232,82.191,3.26740728]
[1770787348933,6.62999163,82.232,82.15,66.25058614]
[1770787348934,6.62999163,82.232,82.169,10.9601]
[1770787349222,6.62999163,82.23,82.152,3.25015301]
[1770787349529,6.62999163,82.207,82.152,3.25015301]
[1770787349724,6.62999163,82.207,82.14,8.11842786]
[1770787349725,6.62999163,82.207,82.163,3.2426786]
[1770787353727,6.62999163,82.207,82.164,10.9607]
[1770787353925,6.62999163,82.207,82.163,3.2426786]
[1770787354232,6.62999163,82.207,82.141,3.28858419]
[1770787355831,6.62999163,82.207,82.155,3.27583265]
[1770787356934,6.62999163,82.207,82.156,10.9618]
[1770787357136,6.62999163,82.207,82.157,3.2692632]
[1770787358637,6.62999163,82.199,82.145,3.26252537]
[1770787360738,6.62999163,82.199,82.15,3.27076156]
[1770787362134,6.62999163,82.199,82.151,14.20958048]
[1770787363041,6.62999163,82.199,82.152,3.24056904]
[1770787365742,6.62999163,82.196,82.152,3.24056904]
[1770787367738,6.62999163,82.193,82.152,3.24056904]
[1770787367944,6.62999163,82.193,82.142,10.9636]
[1770787368945,6.62999163,82.189,82.142,10.9636]
[1770787369635,6.62999163,82.189,82.143,3.22167793]
[1770787369948,6.62999163,82.189,82.15,3.03388793]
[1770787370839,6.62999163,82.189,82.151,3.34977259]
[1770787371052,6.62999163,82.189,82.16,3.03388793]
[1770787371739,6.62999163,82.189,82.151,3.34977259]
[1770787375856,6.62999163,82.189,82.14,3.03388793]
[1770787376056,6.62999163,82.189,82.141,3.14898922]
[1770787378249,6.62999163,82.189,82.15,3.03388793]
[1770787378441,6.62999163,82.189,82.151,3.17076975]
[1770787379549,6.89772501,82.205,82.16,3.03388793]
[1770787380148,6.89772501,82.203,82.152,10.9623]
[1770787380857,6.89772501,82.199,82.152,10.9623]
[1770787381156,6.89772501,82.199,82.144,10.9634]
[1770787382446,6.89772501,82.199,82.145,3.27833636]
[1770787382650,3.03388793,82.17,82.099,7.13170361]
[1770787382858,21.9077,82.216,82.111,7.13170361]
[1770787382859,6.89772501,82.159,82.111,7.13170361]
[1770787385061,6.89772501,82.159,82.121,7.13170361]
[1770787385461,6.89772501,82.159,82.111,7.13170361]
[1770787386463,6.89772501,82.159,82.1,3.03388793]
[1770787387061,6.89772501,82.159,82.101,7.13170361]
[1770787388667,6.89772501,82.149,82.101,7.13170361]
[1770787390157,6.89772501,82.149,82.111,7.13170361]
[1770787390356,6.89772501,82.169,82.12,3.03388793]
[1770787391264,6.89772501,82.169,82.13,3.03388793]
[1770787391766,6.89772501,82.169,82.121,7.13170361]
[1770787392873,6.89772501,82.169,82.123,10.9662]
[1770787395272,6.89772501,82.169,82.129,7.13170361]
[1770787396177,6.89772501,82.169,82.122,10.9664]
[1770787401683,6.89772501,82.169,82.129,10.9653]
[1770787402586,6.89772501,82.169,82.129,17.62574845]
[1770787403781,6.76894625,82.183,82.14,9.69433638]
[1770787403989,9.17857513,82.182,82.14,9.69433638]
[1770787404187,6.76894625,82.183,82.14,9.69433638]
[1770787404483,6.72637367,82.181,82.14,9.69433638]
[1770787405279,6.72637367,82.169,82.125,10.9659]
[1770787406987,11.27381032,82.194,82.116,6.62567038]
[1770787406988,6.72637367,82.159,82.116,6.62567038]
[1770787408187,6.72637367,82.157,82.105,6.62567038]
[1770787408389,3.03388793,82.16,82.105,6.62567038]
[1770787408390,6.72637367,82.155,82.105,6.62567038]
[1770787411183,6.72637367,82.155,82.11,3.03388793]
[1770787411891,6.72637367,82.155,82.111,6.62567038]
[1770787412585,6.72637367,82.149,82.111,6.62567038]
[1770787412788,6.72637367,82.139,82.096,6.62567038]
[1770787413786,6.72637367,82.139,82.101,6.62567038]
[1770787414597,3.03388793,82.15,82.104,6.62567038]
[1770787414789,9.22690136,82.149,82.104,6.62567038]
[1770787415094,9.22690136,82.148,82.104,6.62567038]
[1770787415294,9.22690136,82.147,82.104,6.62567038]
[1770787415495,9.22690136,82.146,82.104,6.62567038]
[1770787415694,6.72637367,82.147,82.105,10.9686]
[1770787415895,9.22697646,82.146,82.105,10.9686]
[1770787416096,6.72637367,82.147,82.105,10.9686]
[1770787416293,9.22697646,82.146,82.106,6.62567038]
[1770787416599,6.72637367,82.147,82.106,6.62567038]
[1770787416798,9.22736852,82.146,82.106,6.62567038]
[1770787417098,6.72637367,82.147,82.106,6.62567038]
[1770787417299,9.22736714,82.146,82.106,6.62567038]
[1770787417497,6.72637367,82.147,82.106,6.62567038]
[1770787417699,9.22807323,82.146,82.106,6.62567038]
[1770787417896,6.72637367,82.147,82.106,6.62567038]
[1770787418094,6.72637367,82.145,82.106,6.62567038]
[1770787418392,6.72637367,82.143,82.101,6.62567038]
[1770787420695,6.72637367,82.139,82.09,9.65955831]
[1770787420905,9.23298466,82.138,82.091,6.62567038]
[1770787421099,9.23298466,82.137,82.091,6.62567038]
[1770787421295,6.72637367,82.15,82.111,6.62567038]
[1770787421496,9.2319285,82.149,82.111,6.62567038]
[1770787421691,6.72637367,82.15,82.111,6.62567038]
[1770787421899,6.72637367,82.148,82.111,6.62567038]
[1770787422299,6.72637367,82.148,82.1,3.03388793]
[1770787422502,6.72637367,82.146,82.1,3.03388793]
[1770787422703,6.72637367,82.144,82.1,3.03388793]
[1770787422902,6.72637367,82.144,82.101,6.62567038]
[1770787423799,6.72637367,82.144,82.103,6.62567038]
[1770787426200,6.72637367,82.144,82.104,17.59437038]
[1770787426201,9.14373781,82.143,82.104,17.59437038]
[1770787426505,6.72637367,82.144,82.104,17.59437038]
[1770787426700,9.14226709,82.143,82.104,17.59437038]
[1770787426902,6.72637367,82.144,82.105,6.62567038]
[1770787427103,9.14064786,82.143,82.105,6.62567038]
[1770787427303,6.72637367,82.144,82.105,6.62567038]
[1770787427304,9.14064786,82.142,82.105,6.62567038]
[1770787427505,6.72637367,82.144,82.105,6.62567038]
[1770787427807,6.72637367,82.144,82.106,10.9685]
[1770787427808,9.14575212,82.143,82.106,10.9685]
[1770787428000,9.14575212,82.142,82.106,10.9685]
[1770787428300,6.72637367,82.144,82.106,10.9685]
[1770787428505,6.72637367,82.142,82.107,6.62567038]
[1770787428705,6.72637367,82.142,82.108,10.9682]
[1770787435610,6.72637367,82.142,82.107,6.62567038]
[1770787436311,6.66666657,82.139,82.099,10.9693]
[1770787436711,6.66666657,82.139,82.099,17.78914354]
[1770787436906,6.66666657,82.139,82.1,6.81984354]
[1770787437107,6.66666657,82.139,82.102,6.81984354]
[1770787440716,6.66666657,82.137,82.093,6.81984354]
[1770787441019,3.0372601,82.14,82.093,6.81984354]
[1770787441020,6.66666657,82.135,82.093,6.81984354]
[1770787441206,3.0372601,82.14,82.093,6.81984354]
[1770787441207,6.66666657,82.133,82.093,6.81984354]
[1770787443106,6.66666657,82.133,82.095,6.81984354]
[1770787445921,6.66666657,82.131,82.095,6.81984354]
[1770787447221,6.66666657,82.129,82.095,6.81984354]
[1770787449218,9.12513799,82.128,82.095,6.81984354]
[1770787449518,6.66666657,82.127,82.095,6.81984354]
[1770787451314,9.13443422,82.126,82.095,6.81984354]
[1770787451513,9.13443422,82.125,82.095,6.81984354]
[1770787451717,6.66666657,82.136,82.095,6.81984354]
[1770787452021,6.66666657,82.134,82.095,6.81984354]
[1770787452219,6.66666657,82.132,82.095,6.81984354]
[1770787452424,9.13244367,82.131,82.095,6.81984354]
[1770787452623,15.79911024,82.13,82.095,6.81984354]
[1770787452920,9.13244367,82.129,82.095,6.81984354]
[1770787453124,9.13244367,82.128,82.095,6.81984354]
[1770787453316,9.13244367,82.127,82.095,6.81984354]
[1770787453512,9.13244367,82.126,82.095,6.81984354]
[1770787453716,9.13244367,82.125,82.095,6.81984354]
[1770787453921,10.9645,82.137,82.095,6.81984354]
[1770787454120,9.11950453,82.136,82.095,6.81984354]
[1770787454322,9.11950453,82.135,82.095,6.81984354]
[1770787454624,6.66666657,82.129,82.095,6.81984354]
[1770787454823,9.11950453,82.128,82.095,6.81984354]
[1770787455128,9.11950453,82.127,82.095,6.81984354]
[1770787455323,9.11950453,82.126,82.095,6.81984354]
[1770787455532,9.11950453,82.125,82.095,6.81984354]
[1770787455720,9.11950453,82.124,82.095,6.81984354]
[1770787455920,9.11950453,82.123,82.095,6.81984354]
[1770787456121,9.11950453,82.122,82.095,6.81984354]
[1770787456322,9.11950453,82.121,82.095,6.81984354]
[1770787456522,9.11950453,82.12,82.095,6.81984354]
[1770787456724,20.66792667,82.14,82.095,6.81984354]
[1770787457022,9.12603512,82.139,82.095,6.81984354]
[1770787457227,6.66666657,82.137,82.095,6.81984354]
[1770787457420,9.12603512,82.136,82.095,6.81984354]
[1770787457621,9.12603512,82.135,82.095,6.81984354]
[1770787457822,9.12603512,82.134,82.095,6.81984354]
[1770787458021,9.12603512,82.133,82.095,6.81984354]
[1770787458220,9.12603512,82.132,82.095,6.81984354]
[1770787458421,9.12603512,82.131,82.095,6.81984354]
[1770787458721,9.12603512,82.13,82.095,6.81984354]
[1770787458927,9.12603512,82.129,82.095,6.81984354]
[1770787459135,11.344256,82.148,82.111,6.81984354]
[1770787459326,3.0372601,82.15,82.111,6.81984354]
[1770787459622,3.0372601,82.15,82.055,21.9506]
[1770787459623,3.0372601,82.13,82.082,6.81984354]
[1770787459830,6.66666657,82.129,82.082,6.81984354]
[1770787461319,6.30150809,82.109,82.071,6.40477727]
[1770787462830,6.30150809,82.099,82.06,6.40477727]
[1770787464536,6.30150809,82.099,82.053,10.9755]
[1770787464736,3.0372601,82.09,82.053,10.9755]
[1770787465533,6.30150809,82.099,82.061,6.70229741]
[1770787471741,6.73699446,82.109,82.061,6.70229741]
[1770787472138,6.73699446,82.107,82.061,6.70229741]
[1770787479144,6.73699446,82.107,82.066,6.70229741]
[1770787481051,6.73699446,82.117,82.072,6.70229741]
[1770787481249,6.73699446,82.115,82.072,6.70229741]
[1770787481442,6.73699446,82.113,82.072,6.70229741]
[1770787482142,10.9654,82.13,82.034,36.52]
[1770787482143,6.73699446,82.129,82.081,6.70229741]
[1770787482339,15.78347227,82.128,82.081,6.70229741]
[1770787482546,6.73699446,82.128,82.081,6.70229741]
[1770787486154,26.0,82.138,82.07,3.0372601]
[1770787486155,6.73699446,82.119,82.07,3.0372601]
[1770787486353,6.73699446,82.117,82.07,9.73955751]
[1770787486647,6.73699446,82.117,82.071,6.70229741]
[1770787487349,6.73699446,82.117,82.07,3.03942454]
[1770787487350,6.73699446,82.117,82.073,6.70229741]
[1770787488356,6.73699446,82.117,82.08,9.74172195]
[1770787488659,6.73699446,82.117,82.081,6.70229741]
[1770787489955,6.73699446,82.128,82.09,3.03942454]
[1770787490665,6.73699446,82.128,82.083,6.70229741]
[1770787491759,6.73699446,82.128,82.085,6.00216744]
[1770787492860,6.73699446,82.128,82.087,6.00216744]
[1770787494863,6.00715032,82.14,82.1,3.03942454]
[1770787495066,6.00715032,82.138,82.1,3.03942454]
[1770787495865,6.00715032,82.138,82.1,10.9692]
[1770787496067,6.00715032,82.138,82.099,6.00216744]
[1770787496266,6.00715032,82.136,82.09,3.03942454]
[1770787496471,6.00715032,82.136,82.09,9.04159198]
[1770787497170,6.00715032,82.136,82.091,6.00216744]
[1770787497766,3.03942454,82.13,82.08,9.04159198]
[1770787497966,6.00715032,82.129,82.081,6.00216744]
[1770787498470,6.00715032,82.129,82.085,6.00216744]
[1770787499874,6.00715032,82.129,82.086,10.9711]
[1770787500366,6.00715032,82.129,82.089,6.00216744]
[1770787500565,6.00715032,82.129,82.091,6.00216744]
[1770787500967,6.00715032,82.141,82.091,6.00216744]
[1770787501270,6.00715032,82.141,82.101,6.00216744]
[1770787502273,6.00715032,82.152,82.11,3.03942454]
[1770787502474,6.00715032,82.15,82.11,3.03942454]
[1770787502673,15.07723809,82.174,82.11,3.03942454]
[1770787502674,6.00715032,82.161,82.111,6.00216744]
[1770787502976,6.00715032,82.159,82.111,6.00216744]
[1770787503269,6.00715032,82.157,82.11,3.03942454]
[1770787503470,6.00715032,82.149,82.11,3.03942454]
[1770787503670,6.00715032,82.149,82.11,9.04159198]
[1770787504368,6.00715032,82.149,82.11,6.00216744]
[1770787504771,6.00715032,82.149,82.101,10.9691]
[1770787504976,6.00715032,82.144,82.099,6.00216744]
[1770787505676,6.00715032,82.144,82.1,3.03942454]
[1770787507469,6.00715032,82.144,82.068,331.33646633]
[1770787507470,3.03942454,82.13,82.087,6.00216744]
[1770787507675,6.00715032,82.129,82.087,6.00216744]
[1770787508576,6.00715032,82.129,82.09,9.04159198]
[1770787511185,6.00715032,82.129,82.09,6.00216744]
[1770787512578,6.00715032,82.129,82.09,9.04159198]
[1770787512783,6.00715032,82.129,82.091,6.00216744]
[1770787514081,6.00715032,82.128,82.091,6.00216744]
[1770787515083,6.00715032,82.125,82.081,6.00216744]
[1770787516983,6.00715032,82.117,82.07,6.00216744]
[1770787517181,6.00715032,82.109,82.07,6.00216744]
[1770787517681,6.00715032,82.109,82.058,6.00216744]
[1770787517878,6.00715032,82.099,82.05,3.03942454]
[1770787518273,6.00715032,82.099,82.051,6.00216744]
[1770787518778,6.00715032,82.096,82.051,6.00216744]
[1770787522389,17.1231088,82.107,82.061,6.35979577]
[1770787523393,6.1546088,82.106,82.061,6.35979577]
[1770787524092,6.1546088,82.104,82.061,6.35979577]
[1770787525089,6.00870147,82.099,82.061,6.35979577]
[1770787525498,9.04812601,82.11,82.061,6.35979577]
[1770787525684,8.96384502,82.109,82.061,6.35979577]
[1770787525884,6.00870147,82.11,82.061,6.35979577]
[1770787528495,6.00870147,82.11,82.07,3.03942454]
[1770787528691,6.00870147,82.11,82.071,6.22829004]
[1770787531497,26.0,82.121,82.081,6.22829004]
[1770787531698,6.00870147,82.124,82.081,6.22829004]
[1770787534002,10.966,82.125,82.081,6.22829004]
[1770787534003,6.00870147,82.122,82.081,6.22829004]
[1770787535698,6.00870147,82.12,82.071,6.22829004]
[1770787535896,6.00870147,82.118,82.071,6.22829004]
[1770787536298,10.9656,82.128,82.081,6.22829004]
[1770787536802,6.00870147,82.127,82.081,6.22829004]
[1770787542608,3.03942454,82.12,82.081,6.22829004]
[1770787542810,3.03942454,82.13,82.081,6.22829004]
[1770787543003,3.03942454,82.13,82.08,3.03942454]
[1770787543004,6.00870147,82.157,82.111,6.22829004]
[1770787543310,6.00870147,82.149,82.103,6.22829004]
[1770787545418,6.00870147,82.129,82.09,6.22829004]
[1770787547706,6.00870147,82.129,82.09,9.26771458]
[1770787549010,6.00870147,82.129,82.09,9.26645429]
[1770787549806,10.9643,82.138,82.091,6.22829004]
[1770787550014,8.96679278,82.137,82.101,6.22829004]
[1770787550208,6.00870147,82.142,82.101,6.22829004]
[1770787550407,6.13503642,82.139,82.101,6.22829004]
[1770787551715,6.13503642,82.151,82.105,5.98740996]
[1770787552012,15.10492691,82.15,82.105,5.98740996]
[1770787552214,8.96989049,82.149,82.105,5.98740996]
[1770787552410,8.96989049,82.148,82.105,5.98740996]
[1770787552610,8.96989049,82.147,82.105,5.98740996]
[1770787552914,8.96989049,82.146,82.105,5.98740996]
[1770787553103,8.96989049,82.145,82.105,5.98740996]
[1770787553304,6.13503642,82.15,82.105,5.98740996]
[1770787553505,6.13503642,82.148,82.105,5.98740996]
[1770787553707,15.10676269,82.147,82.105,5.98740996]
[1770787553913,8.97172627,82.146,82.105,5.98740996]
[1770787554117,6.13503642,82.147,82.105,5.98740996]
[1770787554413,8.97257435,82.146,82.105,5.98740996]
[1770787554612,6.13503642,82.147,82.105,5.98740996]
[1770787554812,8.97177593,82.146,82.105,5.98740996]
[1770787555012,6.13503642,82.147,82.105,5.98740996]
[1770787555210,8.97082928,82.146,82.11,3.03816425]
[1770787555414,8.97082928,82.159,82.111,5.98740996]
[1770787555616,6.13503642,82.157,82.111,5.98740996]
[1770787556020,6.13503642,82.155,82.111,5.98740996]
[1770787559314,3.03619331,82.14,82.095,10.97]
[1770787559520,3.03619331,82.13,82.081,5.98740996]
[1770787559815,9.17122973,82.13,82.081,5.98740996]
[1770787560015,6.13503642,82.129,82.081,5.98740996]
[1770787560216,6.13503642,82.127,82.081,5.98740996]
[1770787560417,6.13503642,82.119,82.073,10.9728]
[1770787560917,6.13503642,82.109,82.062,10.9743]
[1770787561720,3.03619331,82.1,82.056,5.98740996]
[1770787562021,6.13503642,82.099,82.056,5.98740996]
[1770787562817,6.13503642,82.089,82.044,5.98740996]
[1770787564716,6.13503642,82.089,82.05,3.03619331]
[1770787564922,6.13503642,82.089,82.051,5.98740996]
[1770787565120,3.03619331,82.1,82.051,5.98740996]
[1770787565321,6.13503642,82.102,82.061,5.98740996]
[1770787576733,6.13503642,82.099,82.051,5.98740996]
[1770787577232,6.13503642,82.099,82.053,5.98740996]
[1770787582540,6.13503642,82.099,82.057,5.7629383]
[1770787582834,5.68149818,82.108,82.061,5.7629383]
[1770787583235,5.68149818,82.108,82.071,5.7629383]
[1770787584542,6.10533529,82.119,82.071,5.7629383]
[1770787586542,6.10533529,82.113,82.06,3.03619331]
[1770787586739,6.10533529,82.109,82.061,5.62467504]
[1770787587847,6.10533529,82.109,82.065,5.62467504]
[1770787588739,3.03619331,82.11,82.051,10.9758]
[1770787588740,6.10533529,82.107,82.054,5.62467504]
[1770787589245,6.10533529,82.107,82.061,5.62467504]
[1770787589637,6.10533529,82.107,82.071,5.62467504]
[1770787596640,6.10533529,82.107,82.053,10.9755]
[1770787596849,6.10533529,82.079,82.025,5.62467504]
[1770787597042,6.10533529,82.069,82.025,5.62467504]
[1770787597739,6.10533529,82.069,82.011,5.62467504]
[1770787597943,170.4805,82.175,82.011,5.62467504]
[1770787597944,6.10533529,82.059,82.011,5.62467504]
[1770787598642,6.10533529,82.049,82.003,10.9823]
[1770787598845,6.10533529,82.049,82.01,8.66086835]
[1770787599748,6.10533529,82.049,82.01,5.62467504]
[1770787601353,6.10533529,82.049,82.01,8.66086835]
[1770787602154,6.10533529,82.049,82.011,5.62467504]
[1770787604754,6.10533529,82.061,82.021,5.62467504]
[1770787605053,6.10533529,82.073,82.021,5.62467504]
[1770787605358,6.10533529,82.073,82.03,8.66086835]
[1770787605553,6.10533529,82.073,82.031,5.62467504]
[1770787611072,6.11924618,82.069,82.021,5.89933906]
[1770787616074,6.11924618,82.059,82.021,5.89933906]
[1770787616279,6.11924618,82.059,82.011,5.89933906]
[1770787616672,26.0,82.074,82.011,5.89933906]
[1770787616673,6.11924618,82.049,82.011,5.89933906]
[1770787619280,6.11924618,82.049,82.0,3.04274473]
[1770787619577,6.11924618,82.049,82.0,8.94208379]
[1770787619877,3.04274473,82.04,82.001,5.89933906]
[1770787620079,6.11924618,82.039,82.001,5.89933906]
[1770787620678,6.11924618,82.05,82.011,5.89933906]
[1770787621482,9.00303664,82.076,81.968,97.26]
[1770787621483,6.11924618,82.062,82.02,3.04274473]
[1770787621674,6.11924618,82.062,82.02,8.94208379]
[1770787622274,6.11924618,82.059,82.02,5.89933906]
[1770787626791,6.11924618,82.059,82.01,8.94208379]
[1770787626988,6.11924618,82.059,82.011,5.89933906]
[1770787628087,3.04274473,82.05,82.011,5.89933906]
[1770787628288,6.11924618,82.049,82.011,5.89933906]
[1770787628588,6.11924618,82.049,82.0,5.89933906]
[1770787629291,9.16199091,82.04,82.0,5.89933906]
[1770787629989,6.11924618,82.04,82.001,5.89933906]
[1770787634190,6.11924618,82.049,82.001,5.89933906]
[1770787635688,10.9763,82.048,82.001,5.89933906]
[1770787635888,6.11924618,82.047,82.001,5.89933906]
[1770787637398,6.11924618,82.037,81.993,5.89933906]
[1770787637895,6.11924618,82.049,82.001,5.89933906]
[1770787638400,6.11924618,82.047,82.001,5.89933906]
[1770787638702,6.11924618,82.046,82.001,5.89933906]
[1770787640301,9.06018288,82.045,82.001,5.89933906]
[1770787640500,9.06018288,82.044,82.001,5.89933906]
[1770787640802,10.975,82.058,82.011,5.89898195]
[1770787641100,5.61644002,82.056,82.011,5.89898195]
[1770787641299,14.6768274,82.055,82.011,5.89898195]
[1770787641500,9.06038738,82.054,82.011,5.89898195]
[1770787641701,5.61644002,82.052,82.011,5.89898195]
[1770787641903,9.06038738,82.051,82.011,5.89898195]
[1770787642194,9.06038738,82.05,82.011,5.89898195]
[1770787642400,5.61644002,82.051,82.011,5.89898195]
[1770787642401,9.06038738,82.049,82.011,5.89898195]
[1770787642698,9.06038738,82.048,82.012,5.89898195]
[1770787642898,5.61644002,82.058,82.02,5.89898195]
[1770787643098,5.61644002,82.056,82.02,5.89898195]
[1770787643303,5.61644002,82.054,82.02,5.89898195]
[1770787643499,14.69126791,82.053,82.02,5.89898195]
[1770787643799,5.61644002,82.051,82.02,5.89898195]
[1770787644000,9.07482789,82.05,82.02,5.89898195]
[1770787644200,9.07482789,82.049,82.02,5.89898195]
[1770787644403,9.07482789,82.048,82.02,5.89898195]
[1770787644594,5.61644002,82.051,82.02,5.89898195]
[1770787644900,9.07511023,82.05,82.02,5.89898195]
[1770787645100,9.07511023,82.049,82.02,5.89898195]
[1770787645303,9.07511023,82.048,82.02,5.89898195]
[1770787645501,5.96486163,82.045,82.0,5.84659682]
[1770787645705,5.96486163,82.043,82.0,8.88934155]
[1770787645904,15.04033606,82.042,82.001,5.84659682]
[1770787646206,9.07547443,82.041,82.001,5.84659682]
[1770787646405,5.96486163,82.039,82.001,5.84659682]
[1770787646605,9.07547443,82.038,82.001,5.84659682]
[1770787646810,10.9766,82.046,81.991,5.84659682]
[1770787646811,5.96486163,82.036,81.991,5.84659682]
[1770787647009,11.3582422,82.056,81.991,5.84659682]
[1770787647010,5.96486163,82.034,81.991,5.84659682]
[1770787647208,3.04274473,82.03,81.981,10.9852]
[1770787647412,5.96486163,82.028,81.981,10.9852]
[1770787647706,9.06943798,82.027,81.981,10.9852]
[1770787647911,5.96486163,82.025,81.981,16.83179682]
[1770787648212,15.03618427,82.024,81.981,16.83179682]
[1770787648411,5.96486163,82.024,81.982,5.84659682]
[1770787648600,5.96486163,82.024,81.99,8.88934155]
[1770787649102,5.96486163,82.039,81.991,5.84659682]
[1770787649304,9.0690184,82.038,81.991,5.84659682]
[1770787649511,9.0690184,82.038,81.99,3.04274473]
[1770787649512,9.0690184,82.037,82.001,5.84659682]
[1770787649705,5.96486163,82.039,82.001,5.84659682]
[1770787649706,9.0690184,82.036,82.001,5.84659682]
[1770787649906,9.0690184,82.035,82.001,5.84659682]
[1770787650099,5.96486163,82.039,82.001,5.84659682]
[1770787650304,9.06861686,82.038,82.001,5.84659682]
[1770787650613,9.06861686,82.037,82.001,5.84659682]
[1770787650909,9.06861686,82.036,82.001,5.84659682]
[1770787651112,5.96486163,82.039,82.001,5.84659682]
[1770787651307,9.06789671,82.038,82.001,5.84659682]
[1770787651513,9.06789671,82.037,82.001,5.84659682]
[1770787651708,9.06789671,82.036,82.001,5.84659682]
[1770787651907,9.06789671,82.035,82.001,5.84659682]
[1770787652103,5.96486163,82.033,81.99,19.87324155]
[1770787652309,5.96486163,82.031,81.99,19.87324155]
[1770787653012,3.04274473,82.04,81.99,5.84659682]
[1770787653013,5.96486163,82.029,81.99,5.84659682]
[1770787654718,3.04274473,82.04,81.991,5.84659682]
[1770787655011,9.07496564,82.039,82.001,5.84659682]
[1770787655317,5.96486163,82.05,82.001,5.84659682]
[1770787655514,9.07564328,82.049,82.001,5.84659682]
[1770787655714,9.07564328,82.048,82.001,5.84659682]
[1770787655914,9.07564328,82.047,82.001,5.84659682]
[1770787656115,9.07564328,82.046,82.001,5.84659682]
[1770787656305,9.07564328,82.045,82.001,5.84659682]
[1770787656510,9.07564328,82.044,82.001,5.84659682]
[1770787656816,9.07564328,82.043,82.004,5.84659682]
[1770787657115,9.07564328,82.042,82.004,5.84659682]
[1770787657316,9.07564328,82.041,82.004,5.84659682]
[1770787657518,9.07564328,82.04,82.004,5.84659682]
[1770787657712,9.07564328,82.039,82.004,5.84659682]
[1770787657912,5.96486163,82.05,82.004,5.84659682]
[1770787658211,15.04256228,82.049,82.004,5.84659682]
[1770787658410,9.07770065,82.048,82.011,5.84659682]
[1770787658618,9.07770065,82.047,82.011,5.84659682]
[1770787658919,5.96486163,82.063,82.021,5.84659682]
[1770787659116,5.96486163,82.061,82.021,5.84659682]
[1770787659319,15.04241696,82.06,82.021,5.84659682]
[1770787659516,15.04241696,82.059,82.021,5.84659682]
[1770787659812,9.07755533,82.058,82.021,5.84659682]
[1770787660014,9.07755533,82.057,82.021,5.84659682]
[1770787660211,9.07755533,82.057,81.979,22.70278046]
[1770787660212,5.96486163,82.071,82.031,5.84659682]
[1770787660521,9.07590141,82.07,82.031,5.84659682]
[1770787660818,9.07590141,82.069,82.031,5.84659682]
[1770787661114,9.07590141,82.068,82.031,5.84659682]
[1770787661314,5.96486163,82.071,82.031,5.84659682]
[1770787661515,9.07256043,82.07,82.031,5.84659682]
[1770787661711,9.07256043,82.069,82.031,5.84659682]
[1770787661905,9.07256043,82.068,82.031,5.84659682]
[1770787662108,5.96486163,82.071,82.031,5.84659682]
[1770787662306,9.0725607,82.07,82.031,5.84659682]
[1770787662510,9.0725607,82.069,82.031,5.84659682]
[1770787662710,5.96486163,82.071,82.031,5.84659682]
[1770787662910,9.06963231,82.07,82.031,5.84659682]
[1770787663111,9.06963231,82.069,82.031,5.84659682]
[1770787663314,5.96486163,82.071,82.031,5.84659682]
[1770787664717,5.96486163,82.083,82.033,5.84659682]
[1770787664921,3.04274473,82.08,82.033,5.84659682]
[1770787665122,9.04845061,82.079,82.033,5.84659682]
[1770787665320,9.04845061,82.078,82.033,5.84659682]
[1770787665518,5.96486163,82.076,82.002,5.84659682]
[1770787665720,51.67723809,82.113,81.949,170.9477]
[1770787665721,5.96486163,82.059,82.011,5.84659682]
[1770787665921,5.96486163,82.057,82.011,5.84659682]
[1770787668619,5.96486163,82.057,82.021,5.84659682]
[1770787668917,5.96486163,82.071,82.031,5.84659682]
[1770787669123,5.96486163,82.069,82.031,5.84659682]
[1770787669422,15.01170597,82.068,82.031,5.84659682]
[1770787669622,15.01170597,82.067,82.031,5.84659682]
[1770787669823,5.96486163,82.067,82.031,5.84659682]
[1770787671126,6.0625535,82.065,82.02,8.70755919]
[1770787671429,6.0625535,82.065,82.021,5.66511826]
[1770787672431,6.0625535,82.065,82.024,5.66511826]
[1770787674833,6.0625535,82.062,82.011,5.66511826]
[1770787675036,6.0625535,82.059,82.011,5.66511826]
[1770787675338,6.0625535,82.057,82.011,5.66511826]
[1770787675532,6.0625535,82.055,82.011,5.66511826]
[1770787678035,6.0625535,82.055,82.02,3.04396469]
[1770787678228,6.0625535,82.055,82.021,5.66511826]
[1770787678739,6.0625535,82.054,82.011,5.66511826]
[1770787678936,6.0625535,82.053,82.011,5.66511826]
[1770787679740,6.0625535,82.051,82.011,5.66511826]
[1770787681238,112.35723809,82.084,82.0,3.04396469]
[1770787681239,6.0625535,82.044,82.0,3.04396469]
[1770787681440,6.0625535,82.042,81.999,5.66511826]
[1770787681640,26.0,82.059,81.984,5.66511826]
[1770787681641,3.04396469,82.03,81.984,5.66511826]
[1770787681837,6.0625535,82.029,81.984,5.66511826]
[1770787682432,6.0625535,82.029,81.99,3.04396469]
[1770787682745,10.9776,82.039,82.0,3.04396469]
[1770787682947,9.0461023,82.038,82.0,3.04396469]
[1770787683146,9.0461023,82.037,82.0,3.04396469]
[1770787683448,15.1086558,82.036,81.991,5.66511826]
[1770787683651,9.0461023,82.035,81.991,5.66511826]
[1770787683840,6.0625535,82.036,81.991,5.66511826]
[1770787684041,9.0453681,82.035,81.991,5.66511826]
[1770787684236,6.0625535,82.069,82.02,3.04396469]